{"text_format":"1","workbook":"xlsx","n_sheets":11,"sheets":["Instructions","Start Here","Target One","Target Two","Target Three","Target Four","Target Six","Target Seven","Other Activities","Export","Dropdowns"],"not_rendered":{"charts":0,"images":0,"macros":1,"external_links":0,"defined_names":20,"comments":0,"pivot_tables":0},"unopened":[],"bounds":{"document_bytes":16777216,"sheet_cells":100000,"rows_first":2000,"rows_last":500,"rows_between":2000,"halvings":0,"cell_chars":16384,"cell_head_chars":4096},"cells_cut":0,"cells_raw":0,"read":"whole","date_system":"1900"}

{"sheet":"Instructions","index":0,"n_rows":28,"n_cols":5,"rows_kept":28,"cut":false,"hidden":false,"merged":[[11,1,11,2],[1,1,1,2],[2,1,2,2],[4,1,4,2],[5,1,5,2],[6,1,6,2],[26,1,26,2],[27,1,27,2],[12,1,12,2],[13,1,13,2],[15,1,15,2],[23,1,23,2],[24,1,24,2],[25,1,25,2]]}
[]
[null,"National Strategic Plan for Asbestos Awareness and Management 2019-2023 "]
[null,"Reporting Template"]
[]
[null,"How to complete this template  "]
[null,"This template is designed to be used by government departments, agencies, local government and government enterprises to record and report data for measuring progress against the targets of the National Strategic Plan for Asbestos Awareness and Management (NSP) 2019-2023. Of the nine targets in the NSP 2019-2023, this template does not include Targets 8 and 9 because they relate to activities undertaken solely by the Asbestos Safety and Eradication Agency (ASEA) and does not include Target 5 because it relates to activities undertaken soley by the Department of Mines, Industry Regulation and Safety (DMIRS). "]
[null,"This template forms part of a suite of materials to help implement the NSP 2019-2023 and should be read in conjunction with the Guide on Measuring the NSP 2019-2023 Targets. "]
[]
[null,"All Drop Down Cells are lilac","Drop Down"]
[null,"All Data Entry Cells are Yellow","Data Entry"]
[]
[null,"Why do we need a reporting template?"]
[null,"Using the template will ensure that all government departments, agencies, local government and government enterprises collect the same type of data against the targets, so that improvements over the life of the NSP can be identified more easily. A consistent and complete approach to data collection will also allow ASEA to compare and measure progress against the NSP 2019-2023 effectively."]
[null,"Initially, there may be practical or methodological challenges in measuring some targets but it is anticipated that over time these will be addressed. For example, some data collection structures will already exist that enable ready reporting against targets, while in other areas it may be necessary to develop new data sharing or collection systems.  "]
[]
[null,"How often should the template be completed?"]
[null,"This template should be completed and submitted to DMIRS by the following dates (left column): ",null,null," "]
[null,"Due to be submitted to DMIRS","Reporting period"]
[null,"2022-01-21","6 month progress report for the period 1 July 2021 to 31 December 2021"]
[null,"2022-07-15","12 month annual report for the period 1 July 2021 to 30 June 2022"]
[null,"2023-01-20","6 month progress report for the period 1 July 2022 to 31 December 2022"]
[null,"2023-07-14","12 month annual report for the period 1 July 2022 to 30 June 2023"]
[]
[null,"What will ASEA do with the data?"]
[null,"The data will not be used by ASEA to compare jurisdictional performance. ASEA will collate and analyse the data it receives from each jurisdiction to provide a national picture of Australia’s collective efforts to prevent asbestos exposure. ASEA may overlay the jurisdictional information with national data it collects to measure trends and improvements over the five year period of the NSP 2019-2023.  "]
[]
[null,"What will DMIRS do with the data?"]
[null,"The data will not be used by DMIRS to guide regulatory responses. \n\nThe data will not be used by DMIRS to compare agency performance. DMIRS will collate the data it receives from each agency or organisation into a summarised jurisdictional report, which will then be provided to ASEA. ASEA will then use this data for reporting as described above. \n\nDMIRS may use the data received to report on progress against the NSP targets at a State level. Such reporting will be aggregated, and not include any details of agency specific activities or data without prior approval being sought."]

{"sheet":"Start Here","index":1,"n_rows":19,"n_cols":3,"rows_kept":19,"cut":false,"hidden":false,"merged":[[1,1,1,2],[5,1,5,2]]}
[]
[null,"National Strategic Plan for Asbestos Awareness and Management 2019-2023 "]
[]
[null,"Delegated Authority"]
[]
[null,"IMPORTANT: Release of this information requires the appropriate person’s approval (DG/CEO/Executive/Manager), as it will be published by ASEA.  DMIRS will not provide the completed form to ASEA if the below tick box is not checked, or the table incomplete. If you are reporting on behalf of another Government Organisation, please select the appropriate option."]
[]
[null,"The information contained in this form is approved for submission to DMIRS (to provide to ASEA) by : "]
[null,"Government Organisation :","Please Select"]
[null,"Delegated Authority – Name & title:"]
[null,"Electronic Signature:\nPaste the electronic signature of the delegated authority here"]
[null,"Date signed (dd/mm/yyyy):"]
[]
[]
[null,"Initial Declaration"]
[]
[null,"Does your organisation have asbestos-containing material (ACM) within its buildings, land or infrastructure?","Please Select"]
[]
[null," ------>",{"$f":"IF(C17=\"No\",\"Completion of questions under Targets 1-3 is optional\", \"Go to Target One\")","v":"Go to Target One"}]

{"sheet":"Target One","index":2,"n_rows":25,"n_cols":11,"rows_kept":25,"cut":false,"hidden":false,"merged":[[1,1,1,10],[2,1,2,10],[3,3,3,4],[3,5,3,6],[3,7,3,8],[3,9,3,10],[16,9,16,10],[4,3,4,4],[4,5,4,6],[4,7,4,8],[4,9,4,10],[5,3,5,4],[5,5,5,6],[5,7,5,8],[5,9,5,10],[6,1,15,1],[6,2,15,2],[16,3,16,4],[16,5,16,6],[16,7,16,8],[17,3,17,4],[17,5,17,6],[17,7,17,8],[17,9,17,10],[18,1,24,1],[18,2,24,2]]}
[]
[null,"Target One - Increased awareness of the health risks of asbestos containing materials (ACMs) and where to source information "]
[null,"NOTE: Please select an answer for each option below, if not applicable, select \"N/A\""]
[null,"Question No.","Increased awareness of the health risks of asbestos containing materials (ACMs) and where to source information","Tradespersons who are likely to encounter ACMs in the course of their work",null,"Workers in workplaces with ACMs",null,"Owners and tenants of residential premises",null,"Property managers and real estate agents"]
[null,1.1000000000000001,"How aware are each of the target audiences about (baseline level of awareness):\n* the health consequence of exposure to asbestos fibres;\n* the prevalence of asbestos containing material (ACMs);\n* where ACMs are located; and\n* where to find reliable information on managing asbestos safely?\n","Please Select",null,"Please Select",null,"Please Select",null,"Please Select"]
[null,1.2,"Have you conducted any awareness raising activities targeting the relevant groups? ","Please Select",null,"Please Select",null,"Please Select",null,"Please Select"]
[null,1.3,"Please indicate which awareness raising activities were conducted during the reporting period. (select yes or no for each activity listed)","Guidance material","Please Select","Guidance material","Please Select","Guidance material","Please Select","Guidance material","Please Select"]
[null,null,null,"Compliance campaigns","Please Select","Compliance campaigns","Please Select","Compliance campaigns","Please Select","Compliance campaigns","Please Select"]
[null,null,null,"Webinars","Please Select","Webinars","Please Select","Webinars","Please Select","Webinars","Please Select"]
[null,null,null,"Videos","Please Select","Videos","Please Select","Videos","Please Select","Videos","Please Select"]
[null,null,null,"Presentations","Please Select","Presentations","Please Select","Presentations","Please Select","Presentations","Please Select"]
[null,null,null,"Training courses","Please Select","Training courses","Please Select","Training courses","Please Select","Training courses","Please Select"]
[null,null,null,"Social media campaign","Please Select","Social media campaign","Please Select","Social media campaign","Please Select","Social media campaign","Please Select"]
[null,null,null,"Induction and training at site or agency level","Please Select","Induction and training at site or agency level","Please Select","Induction and training at site or agency level","Please Select","Induction and training at site or agency level","Please Select"]
[null,null,null,"Signage","Please Select","Signage","Please Select","Signage","Please Select","Signage","Please Select"]
[null,null,null,"Other","Please Select","Other","Please Select","Other","Please Select","Other","Please Select"]
[null,1.4,"Has an evaluation been conducted of the effectiveness of the activities? ","Please Select",null,"Please Select",null,"Please Select",null,"Please Select"]
[null,1.5,"Has there been an increase in the level of awareness from the awareness raising activities? ","Please Select",null,"Please Select",null,"Please Select",null,"Please Select"]
[null,1.6,"Please indicate how awareness levels have been determined/measured. (select yes or no for each method)","Survey","Please Select","Survey","Please Select","Survey","Please Select","Survey","Please Select"]
[null,null,null,"Observations","Please Select","Observations","Please Select","Observations","Please Select","Observations","Please Select"]
[null,null,null,"Improved compliance","Please Select","Improved compliance","Please Select","Improved compliance","Please Select","Improved compliance","Please Select"]
[null,null,null,"Increased contact","Please Select","Increased contact","Please Select","Increased contact","Please Select","Increased contact","Please Select"]
[null,null,null,"Website traffic","Please Select","Website traffic","Please Select","Website traffic","Please Select","Website traffic","Please Select"]
[null,null,null,"Social media","Please Select","Social media","Please Select","Social media","Please Select","Social media","Please Select"]
[null,null,null,"Other","Please Select","Other","Please Select","Other","Please Select","Other","Please Select"]

{"sheet":"Target Two","index":3,"n_rows":13,"n_cols":5,"rows_kept":13,"cut":false,"hidden":false,"merged":[[10,3,10,4],[11,3,11,4],[12,3,12,4],[1,1,1,4],[3,3,3,4],[4,3,4,4],[5,3,5,4],[6,1,9,1],[6,2,9,2]]}
[]
[null,"Target Two - All governments have identified and assessed the risks associated with ACMs in publicly owned and controlled buildings, land and infrastructure."]
[]
[null,"Question No.","Measures ","Response "]
[null,2.1,"Number of government owned and controlled sites requiring asbestos registers in your organisation.\n\"Controlled\" means the agency has some level of control over the site, including by ownership, lease or contractual arrangement."]
[null,2.2000000000000002,"Number of asbestos registers that are electronically accessible (as opposed to paper-based) by your organisation."]
[null,2.2999999999999998,"Where are asbestos registers kept and maintained? ","At Each Building","Please Select"]
[null,null,null,"At Head Office","Please Select"]
[null,null,null,"Online","Please Select"]
[null,null,null,"Government Office Accommodation (Department of Finance)","Please Select"]
[null,2.4,"How often does your organisation update its asbestos register/s?","Please Select"]
[null,2.5,"Are the risk ratings on your organisation’s asbestos register consistent to enable a coordinated approach to remediation?\n\nFor example: your organisation may have multiple asbestos risk registers across multiple workplaces, and different people completing the various registers and assessing the risk level. \n\nIf the assessment of the risk levels/factors is not consistent, it could be difficult to properly prioritise removal or make asbestos management decisions based on those assessments.","Please Select"]
[null,2.6,"Have plans been undertaken to centralise asbestos registers to enable an integrated view or whole of government assessment of ACMs? \nFor example, where a large agency has centralised access to the asbestos registers for all or most sites.","Please Select"]

{"sheet":"Target Three","index":4,"n_rows":8,"n_cols":4,"rows_kept":8,"cut":false,"hidden":false,"merged":[[1,1,1,3],[3,1,3,3]]}
[]
[null,"Target Three - All jurisdictions have schedules and processes for the prioritised safe removal according to risk of ACMs from public buildings and infrastructure, and safe disposal of that material"]
[]
[null,"Note: The Government accepts that full compliance with Target 3 may take time to achieve for some organisations. This target should be addressed in a pragmatic, risk based approach. "]
[null,"Question No.","Measures ","Response"]
[null,3.1,"Is there a schedule for phased/prioritised ACM removal (based on assessed risks for a particular area or asset type?)","Please Select"]
[null,3.2,"Is there a contractual arrangement with suitable asbestos professionals for ACMs to be removed safely in accordance with the schedule? ","Please Select"]
[null,3.3,"Has your organisation conducted an assessment of WA’s licensed landfill capacity for asbestos disposal?\n\nNOTE: If you have any feedback on access to appropriate landfill please include in the last section “Other asbestos-related activities or feedback”","Please Select"]

{"sheet":"Target Four","index":5,"n_rows":28,"n_cols":4,"rows_kept":28,"cut":false,"hidden":false,"merged":[[22,1,24,1],[25,1,27,1],[1,1,1,4],[3,1,3,2],[4,3,4,4],[5,1,11,1],[12,1,21,1],[5,2,11,2],[12,2,21,2],[22,2,24,2],[25,2,27,2]]}
[]
[null,"Target Four: Only applicable to the Department of Mines, Industry Regulation and Safety, Department of Water and Environmental Regulation, Department of Health and Local Government Authorities"]
[]
[null,"All regulators have in place and have implemented asbestos compliance programs "]
[null,"Question No.","Measures ","1 July 2022 to 30 June 2023"]
[null,4.0999999999999996,"If your organisation is a regulator, what type and number of asbestos-related compliance activities has it undertaken? E.g. inspections, inquiries, issue of permits\n\nPlease leave cell blank if the activity is not applicable to your organisation.\n\nPlease note: This question also relates to aspects of question 6.3.","Work health and safety"]
[null,null,null,"Environment protection"]
[null,null,null,"Public health "]
[null,null,null,"Consumer protection"]
[null,null,null,"Planning/building standards"]
[null,null,null,"Customs and border protection"]
[null,null,null,"Mining and quarrying authorities  "]
[null,4.2,"Type and number of asbestos-related information / material published by your organisation\n\n\nPlease leave cell blank if the information / material is not applicable to your organisation.","Amended or created laws"]
[null,null,null,"Code of Practice"]
[null,null,null,"Guidance"]
[null,null,null,"Safety alert"]
[null,null,null,"Fact Sheet"]
[null,null,null,"Poster"]
[null,null,null,"Video"]
[null,null,null,"Social media"]
[null,null,null,"Standard Advice provided with Building Permit"]
[null,null,null,"Other information product"]
[null,4.3,"Types and numbers of proactive activities related to asbestos \n\nIf your organisation has indicated completion of 'Other proactive activities', please provide a description of these in the 'Other Activities' sheet of this workbook.\n\nPlease leave cell blank if the activity is not applicable to your organisation.","Site inspections"]
[null,null,null,"Audits"]
[null,null,null,"Other proactive activity"]
[null,4.4000000000000004,"Other activities to encourage compliance \n\nPlease leave cell blank if the activity is not applicable to your organisation.","Presentation or seminar"]
[null,null,null,"Workshop"]
[null,null,null,"Training "]

{"sheet":"Target Six","index":6,"n_rows":33,"n_cols":5,"rows_kept":33,"cut":false,"hidden":false,"merged":[[21,1,28,1],[21,2,28,2],[29,1,31,1],[29,2,31,2],[1,1,1,4],[3,1,3,4],[4,3,4,4],[5,1,12,1],[5,2,12,2],[13,1,20,1],[13,2,20,2]]}
[]
[null,"Target Six: Only applicable to the Department of Health, Department of Mines, Industry Regulation and Safety, Department of Water and Environmental Regulation, Department of Biodiversity, Conservation and Attractions and Local Government Authorities"]
[]
[null,"All regulators are investigating, prosecuting and penalising serious known breaches of asbestos-related laws including of illegal waste disposal and importation"]
[null,"Question No.","Response","1 July 2022 to 30 June 2023"]
[null,6.1,"If your agency is a WA regulator, what type and number of asbestos-related enforcement has it undertaken?\n\n\nPlease leave cell blank if the activity is not applicable to your organisation.","Work health and safety"]
[null,null,null,"Environment protection"]
[null,null,null,"Public health "]
[null,null,null,"Consumer Protection"]
[null,null,null,"Planning/building standards"]
[null,null,null,"Customs and border protection"]
[null,null,null,"Mining and quarrying authorities"]
[null,null,null,"Local government"]
[null,6.2,"If your agency is a WA regulator, what types and numbers of investigations has it undertaken?\n\n\nPlease leave cell blank if the activity is not applicable to your organisation.","Work health and safety"]
[null,null,null,"Environment protection"]
[null,null,null,"Public health "]
[null,null,null,"Consumer Protection"]
[null,null,null,"Planning/building standards"]
[null,null,null,"Customs and border protection"]
[null,null,null,"Mining and quarrying authorities"]
[null,null,null,"Local government"]
[null,6.3,"If your agency is a WA regulator, what types and numbers of enforcement outcome has it issued or undertaken, other than prosecution or civil action?  Please note: This question also relates to aspects of question 4.1.\n\nIf your organisation has indicated completion of 'other enforcement' activities, please provide a description of these in the 'Other Activities' spreadsheet of this workbook.\n\nPlease leave cell blank if the activity is not applicable to your organisation.","Improvement notice"]
[null,null,null,"Prohibition notice "]
[null,null,null,"Infringement notice/penalty notices"]
[null,null,null,"Clean-up notices "]
[null,null,null,"Enforceable undertaking "]
[null,null,null,"Revoking, suspending or cancelling authorisations"]
[null,null,null,"Other enforcement:"]
[null,null,null,"Defect rectification"]
[null,6.4,"If your agency is a WA regulator, what type and numbers of asbestos-related prosecutions and civil proceedings has it currently / previously undertaken in the reporting period?\n\nPlease leave cell blank if the activity is not applicable to your organisation.","legal proceedings commenced"]
[null,null,null,"legal proceedings resulting in a conviction, order or agreement "]
[null,null,null,"unsuccessful legal proceedings"]
[null,6.5,"Estimated total amount of fines ordered by the courts for successful proceedings (rounded to the nearest $1,000)","Amount:",0]

{"sheet":"Target Seven","index":7,"n_rows":7,"n_cols":4,"rows_kept":7,"cut":false,"hidden":false,"merged":[[1,1,1,4],[3,1,3,2],[4,3,4,4],[5,3,5,4],[6,3,6,4]]}
[]
[null,"Target Seven: Only applicable to the Department of Water and Environmental Regulation, Department of Biodiversity, Conservation and Attraction, Department of Finance, Department of Planning, Lands and  Heritage and Department of Health (who will reply for Local Government Authorities)"]
[]
[null,"Easier and cheaper disposal of asbestos waste."]
[null,"Question No.","Measures ","Details"]
[null,7.1,"How many cases of illegal dumping were reported?"]
[null,7.2,"What is being done to make disposal of asbestos waste cheaper and easier?"]

{"sheet":"Other Activities","index":8,"n_rows":5,"n_cols":3,"rows_kept":5,"cut":false,"hidden":false,"merged":[[1,1,1,2],[3,1,3,2]]}
[]
[null,"Other asbestos-related activities or feedback"]
[]
[null,"This section may be used to record additional information not captured in the targets that aligns with achieving the overall aim of the NSP 2019-2023, e.g. workforce markers (licenses issued); asbestos removal notifications; policy, legislative or regulatory changes. This information will be taken into consideration when assessing progress of the NSP 2019-2023."]
[null,"Type of activity","1 July 2022 to 30 June 2023"]

{"sheet":"Export","index":9,"n_rows":2,"n_cols":156,"rows_kept":2,"cut":false,"hidden":true,"merged":[]}
[{"$f":"'Start Here'!B9","v":"Government Organisation :"},"Approved for submission by:","Delegated Authority – Name & title:",{"$f":"'Start Here'!B12","v":"Date signed (dd/mm/yyyy):"},{"$f":"'Start Here'!B17","v":"Does your organisation have asbestos-containing material (ACM) within its buildings, land or infrastructure?"},"1.1 Tradespersons who are likely to encounter ACMs in the course of their work","1.1 Workers in workplaces with ACMs","1.1 Owners and tenants of residential premises","1.1 Property managers and real estate agents","1.2 Tradespersons who are likely to encounter ACMs in the course of their work","1.2 Workers in workplaces with ACMs","1.2 Owners and tenants of residential premises","1.2 Property managers and real estate agents","1.3 Guidance material - Tradepersons","1.3 Compliance campaigns - Tradepersons","1.3 Webinars - Tradepersons","1.3 Videos - Tradepersons","1.3 Presentations - Tradepersons","1.3 Training courses - Tradepersons","1.3 Social media campaign - Tradepersons","1.3 Induction and training at site or agency level - Tradepersons","1.3 Signage - Tradepersons","1.3 Other - Tradepersons","1.3 Guidance material - Workers","1.3 Compliance campaigns - Workers","1.3 Webinars - Workers","1.3 Videos - Workers","1.3 Presentations - Workers","1.3 Training courses - Workers","1.3 Social media campaign - Workers","1.3 Induction and training at site or agency level - Workers","1.3 Signage - Workers","1.3 Other - Workers","1.3 Guidance material - Owners and tenants","1.3 Compliance campaigns - Owners and tenants","1.3 Webinars - Owners and tenants","1.3 Videos - Owners and tenants","1.3 Presentations - Owners and tenants","1.3 Training courses - Owners and tenants","1.3 Social media campaign - Owners and tenants","1.3 Induction and training at site or agency level - Owners and tenants","1.3 Signage - Owners and tenants","1.3 Other - Owners and tenants","1.3 Guidance material - Property managers and real estate agents","1.3 Compliance campaigns - Property managers and real estate agents","1.3 Webinars - Property managers and real estate agents","1.3 Videos - Property managers and real estate agents","1.3 Presentations - Property managers and real estate agents","1.3 Training courses - Property managers and real estate agents","1.3 Social media campaign - Property managers and real estate agents","1.3 Induction and training at site or agency level - Property managers and real estate agents","1.3 Signage - Property managers and real estate agents","1.3 Other - Property managers and real estate agents","1.4 Tradespersons who are likely to encounter ACMs in the course of their work","1.4 Workers in workplaces with ACMs","1.4 Owners and tenants of residential premises","1.4 Property managers and real estate agents","1.5 Tradespersons who are likely to encounter ACMs in the course of their work","1.5 Workers in workplaces with ACMs","1.5 Owners and tenants of residential premises","1.5 Property managers and real estate agents","1.6 Survey - Tradepersons","1.6 Observations - Tradepersons","1.6 Improved compliance - Tradepersons","1.6 Increased contact - Tradepersons","1.6 Website traffic - Tradepersons","1.6 Social media - Tradepersons","1.6 Other - Tradepersons","1.6 Survey - Workers","1.6 Observations - Workers","1.6 Improved compliance - Workers","1.6 Increased contact - Workers","1.6 Website traffic - Workers","1.6 Social media - Workers","1.6 Other - Workers","1.6 Survey - Owners and tenants","1.6 Observations - Owners and tenants","1.6 Improved compliance - Owners and tenants","1.6 Increased contact - Owners and tenants","1.6 Website traffic - Owners and tenants","1.6 Social media - Owners and tenants","1.6 Other - Owners and tenants","1.6 Survey - Property managers and real estate agents","1.6 Observations - Property managers and real estate agents","1.6 Improved compliance - Property managers and real estate agents","1.6 Increased contact - Property managers and real estate agents","1.6 Website traffic - Property managers and real estate agents","1.6 Social media - Property managers and real estate agents","1.6 Other - Property managers and real estate agents",2.1,2.2000000000000002,"2.3 At Each Building","2.3 At Head Office","2.3 Online","2.3 Government Office Accommodation (Department of Finance)",2.4,2.5,2.6,3.1,3.2,3.3,"4.1 Work health and safety","4.1 Environment protection","4.1 Public health ","4.1 Consumer protection","4.1 Planning/building standards","4.1 Customs and border protection","4.1 Mining and quarrying authorities  ","4.2 Amended or created laws","4.2 Code of Practice","4.2 Guidance","4.2 Safety alert","4.2 Fact Sheet","4.2 Poster","4.2 Video","4.2 Social media","4.2 Standard Advice Provided with Building Permit","4.2 Other information product","4.3 Site inspections","4.3 Audits","4.3 Other proactive activity","4.4 Presentation or seminar","4.4 Workshop","4.4 Training ",5.0999999999999996,5.2,"6.1 Work health and safety","6.1 Environment protection","6.1 Public health ","6.1 Consumer Protection","6.1 Planning/building standards","6.1 Customs and border protection","6.1 Mining and quarrying authorities","6.1 Local government","6.2 Work health and safety","6.2 Environment protection","6.2 Public health ","6.2 Consumer Protection","6.2 Planning/building standards","6.2 Customs and border protection","6.2 Mining and quarrying authorities","6.2 Local government","6.3 Improvement notice","6.3 Prohibition notice ","6.3 Infringement notice/penalty notices","6.3 Clean-up notices ","6.3 Enforceable undertaking ","6.3 Revoking, suspending or cancelling authorisations","6.3 Other enforcement:","6.3 Defect rectification","6.4 legal proceedings commenced","6.4 legal proceedings resulting in a conviction, order or agreement ","6.4 unsuccessful legal proceedings","6.5 Amount:","7.1 How many cases of illegal dumping","7.2 What is being done to make disposal of asbestos waste cheaper and easier?"]
[{"$f":"'Start Here'!C9","v":"Please Select"},{"$f":"'Start Here'!C8","v":0},{"$f":"'Start Here'!C10","v":0},{"$f":"'Start Here'!C12","v":"00:00:00"},{"$f":"'Start Here'!C17","v":"Please Select"},{"$f":"'Target One'!D5","v":"Please Select"},{"$f":"'Target One'!F5","v":"Please Select"},{"$f":"'Target One'!H5","v":"Please Select"},{"$f":"'Target One'!J5","v":"Please Select"},{"$f":"'Target One'!D6","v":"Please Select"},{"$f":"'Target One'!F6","v":"Please Select"},{"$f":"'Target One'!H6","v":"Please Select"},{"$f":"'Target One'!J6","v":"Please Select"},{"$f":"'Target One'!E7","v":"Please Select"},{"$f":"'Target One'!E8","v":"Please Select"},{"$f":"'Target One'!E9","v":"Please Select"},{"$f":"'Target One'!E10","v":"Please Select"},{"$f":"'Target One'!E11","v":"Please Select"},{"$f":"'Target One'!E12","v":"Please Select"},{"$f":"'Target One'!E13","v":"Please Select"},{"$f":"'Target One'!E14","v":"Please Select"},{"$f":"'Target One'!E15","v":"Please Select"},{"$f":"'Target One'!E16","v":"Please Select"},{"$f":"'Target One'!G7","v":"Please Select"},{"$f":"'Target One'!G8","v":"Please Select"},{"$f":"'Target One'!G9","v":"Please Select"},{"$f":"'Target One'!G10","v":"Please Select"},{"$f":"'Target One'!G11","v":"Please Select"},{"$f":"'Target One'!G12","v":"Please Select"},{"$f":"'Target One'!G13","v":"Please Select"},{"$f":"'Target One'!G14","v":"Please Select"},{"$f":"'Target One'!G15","v":"Please Select"},{"$f":"'Target One'!G16","v":"Please Select"},{"$f":"'Target One'!I7","v":"Please Select"},{"$f":"'Target One'!I8","v":"Please Select"},{"$f":"'Target One'!I9","v":"Please Select"},{"$f":"'Target One'!I10","v":"Please Select"},{"$f":"'Target One'!I11","v":"Please Select"},{"$f":"'Target One'!I12","v":"Please Select"},{"$f":"'Target One'!I13","v":"Please Select"},{"$f":"'Target One'!I14","v":"Please Select"},{"$f":"'Target One'!I15","v":"Please Select"},{"$f":"'Target One'!I16","v":"Please Select"},{"$f":"'Target One'!K7","v":"Please Select"},{"$f":"'Target One'!K8","v":"Please Select"},{"$f":"'Target One'!K9","v":"Please Select"},{"$f":"'Target One'!K10","v":"Please Select"},{"$f":"'Target One'!K11","v":"Please Select"},{"$f":"'Target One'!K12","v":"Please Select"},{"$f":"'Target One'!K13","v":"Please Select"},{"$f":"'Target One'!K14","v":"Please Select"},{"$f":"'Target One'!K15","v":"Please Select"},{"$f":"'Target One'!K16","v":"Please Select"},{"$f":"'Target One'!D17","v":"Please Select"},{"$f":"'Target One'!F17","v":"Please Select"},{"$f":"'Target One'!H17","v":"Please Select"},{"$f":"'Target One'!J17","v":"Please Select"},{"$f":"'Target One'!D18","v":"Please Select"},{"$f":"'Target One'!F18","v":"Please Select"},{"$f":"'Target One'!H18","v":"Please Select"},{"$f":"'Target One'!J18","v":"Please Select"},{"$f":"'Target One'!E19","v":"Please Select"},{"$f":"'Target One'!E20","v":"Please Select"},{"$f":"'Target One'!E21","v":"Please Select"},{"$f":"'Target One'!E22","v":"Please Select"},{"$f":"'Target One'!E23","v":"Please Select"},{"$f":"'Target One'!E24","v":"Please Select"},{"$f":"'Target One'!E25","v":"Please Select"},{"$f":"'Target One'!G19","v":"Please Select"},{"$f":"'Target One'!G20","v":"Please Select"},{"$f":"'Target One'!G21","v":"Please Select"},{"$f":"'Target One'!G22","v":"Please Select"},{"$f":"'Target One'!G23","v":"Please Select"},{"$f":"'Target One'!G24","v":"Please Select"},{"$f":"'Target One'!G25","v":"Please Select"},{"$f":"'Target One'!I19","v":"Please Select"},{"$f":"'Target One'!I20","v":"Please Select"},{"$f":"'Target One'!I21","v":"Please Select"},{"$f":"'Target One'!I22","v":"Please Select"},{"$f":"'Target One'!I23","v":"Please Select"},{"$f":"'Target One'!I24","v":"Please Select"},{"$f":"'Target One'!I25","v":"Please Select"},{"$f":"'Target One'!K19","v":"Please Select"},{"$f":"'Target One'!K20","v":"Please Select"},{"$f":"'Target One'!K21","v":"Please Select"},{"$f":"'Target One'!K22","v":"Please Select"},{"$f":"'Target One'!K23","v":"Please Select"},{"$f":"'Target One'!K24","v":"Please Select"},{"$f":"'Target One'!K25","v":"Please Select"},{"$f":"'Target Two'!D5","v":0},{"$f":"'Target Two'!D6","v":0},{"$f":"'Target Two'!E7","v":"Please Select"},{"$f":"'Target Two'!E8","v":"Please Select"},{"$f":"'Target Two'!E9","v":"Please Select"},{"$f":"'Target Two'!E10","v":"Please Select"},{"$f":"'Target Two'!D11","v":"Please Select"},{"$f":"'Target Two'!D12","v":"Please Select"},{"$f":"'Target Two'!D13","v":"Please Select"},{"$f":"'Target Three'!D6","v":"Please Select"},{"$f":"'Target Three'!D7","v":"Please Select"},{"$f":"'Target Three'!D8","v":"Please Select"},{"$f":"'Target Four'!E6","v":0},{"$f":"'Target Four'!E7","v":0},{"$f":"'Target Four'!E8","v":0},{"$f":"'Target Four'!E9","v":0},{"$f":"'Target Four'!E10","v":0},{"$f":"'Target Four'!E11","v":0},{"$f":"'Target Four'!E12","v":0},{"$f":"'Target Four'!E13","v":0},{"$f":"'Target Four'!E14","v":0},{"$f":"'Target Four'!E15","v":0},{"$f":"'Target Four'!E16","v":0},{"$f":"'Target Four'!E17","v":0},{"$f":"'Target Four'!E18","v":0},{"$f":"'Target Four'!E19","v":0},{"$f":"'Target Four'!E20","v":0},{"$f":"'Target Four'!E21","v":0},{"$f":"'Target Four'!E22","v":0},{"$f":"'Target Four'!E23","v":0},{"$f":"'Target Four'!E24","v":0},{"$f":"'Target Four'!E25","v":0},{"$f":"'Target Four'!E26","v":0},{"$f":"'Target Four'!E27","v":0},{"$f":"'Target Four'!E28","v":0},{"$f":"#REF!","v":{"$error":"#REF!"}},{"$f":"#REF!","v":{"$error":"#REF!"}},{"$f":"'Target Six'!E6","v":0},{"$f":"'Target Six'!E7","v":0},{"$f":"'Target Six'!E8","v":0},{"$f":"'Target Six'!E9","v":0},{"$f":"'Target Six'!E10","v":0},{"$f":"'Target Six'!E11","v":0},{"$f":"'Target Six'!E12","v":0},{"$f":"'Target Six'!E13","v":0},{"$f":"'Target Six'!E14","v":0},{"$f":"'Target Six'!E15","v":0},{"$f":"'Target Six'!E16","v":0},{"$f":"'Target Six'!E17","v":0},{"$f":"'Target Six'!E18","v":0},{"$f":"'Target Six'!E19","v":0},{"$f":"'Target Six'!E20","v":0},{"$f":"'Target Six'!E21","v":0},{"$f":"'Target Six'!E22","v":0},{"$f":"'Target Six'!E23","v":0},{"$f":"'Target Six'!E24","v":0},{"$f":"'Target Six'!E25","v":0},{"$f":"'Target Six'!E26","v":0},{"$f":"'Target Six'!E27","v":0},{"$f":"'Target Six'!E28","v":0},{"$f":"'Target Six'!E29","v":0},{"$f":"'Target Six'!E30","v":0},{"$f":"'Target Six'!E31","v":0},{"$f":"'Target Six'!E32","v":0},{"$f":"'Target Six'!$E$33","v":0},{"$f":"'Target Seven'!D6","v":0},{"$f":"'Target Seven'!D7","v":0}]

{"sheet":"Dropdowns","index":10,"n_rows":273,"n_cols":13,"rows_kept":273,"cut":false,"hidden":true,"merged":[]}
[null,"Awareness","YesNo1","Yes/No","Yes/No/ Unsure","Update Frequency","YesNo2","YesViaDoF","YesNo3","Location","Department / Agency","NotApplicable","2023-01-01"]
[null,"Please Select","Please Select","Please Select","Please Select","Please Select","Please Select","Please Select","Please Select","Please Select","Please Select","Please Select"]
[null,"Very Aware","Yes","Yes","Yes","At least annually","Yes","Yes","Yes","At Each Building","Agricultural Produce Commission","Not applicable "]
[null,"Somewhat Aware","No","No","No","Every 2 years","No","Yes - via Department of Finance","No","At Head Office","Animal Resources Authority","Information provided above"]
[null,"Unaware","N/A","N/A","Unsure","Every 3 years","In some cases","No","Unsure","Online","Aqwest"]
[null,"Unsure",null,null,"N/A","Every 4 years","Unsure","In some cases","N/A","Government Office Accommodation (Department of Finance)","Architects Board of Western Australia"]
[null,"N/A",null,null,null,"5 years or less often","N/A","Unsure",null,"N/A","Botanic Gardens and Parks Authority"]
[null,null,null,null,null,"Unsure",null,"N/A",null,null,"Building and Construction Industry Training Fund"]
[null,null,null,null,null,"N/A",null,null,null,null,"Busselton Water Board"]
[null,null,null,null,null,null,null,null,null,null,"Central Regional TAFE"]
[null,null,null,null,null,null,null,null,null,null,"Chemistry Centre (WA)"]
[null,null,null,null,null,null,null,null,null,null,"City of Albany"]
[null,null,null,null,null,null,null,null,null,null,"City of Armadale"]
[null,null,null,null,null,null,null,null,null,null,"City of Bayswater"]
[null,null,null,null,null,null,null,null,null,null,"City of Belmont"]
[null,null,null,null,null,null,null,null,null,null,"City of Bunbury"]
[null,null,null,null,null,null,null,null,null,null,"City of Busselton"]
[null,null,null,null,null,null,null,null,null,null,"City of Canning"]
[null,null,null,null,null,null,null,null,null,null,"City of Cockburn"]
[null,null,null,null,null,null,null,null,null,null,"City of Fremantle"]
[null,null,null,null,null,null,null,null,null,null,"City of Gosnells"]
[null,null,null,null,null,null,null,null,null,null,"City of Greater Geraldton"]
[null,null,null,null,null,null,null,null,null,null,"City of Joondalup"]
[null,null,null,null,null,null,null,null,null,null,"City of Kalgoorlie-Boulder"]
[null,null,null,null,null,null,null,null,null,null,"City of Karratha"]
[null,null,null,null,null,null,null,null,null,null,"City of Kwinana"]
[null,null,null,null,null,null,null,null,null,null,"City of Mandurah"]
[null,null,null,null,null,null,null,null,null,null,"City of Melville"]
[null,null,null,null,null,null,null,null,null,null,"City of Nedlands"]
[null,null,null,null,null,null,null,null,null,null,"City of Perth"]
[null,null,null,null,null,null,null,null,null,null,"City of Rockingham"]
[null,null,null,null,null,null,null,null,null,null,"City of South Perth"]
[null,null,null,null,null,null,null,null,null,null,"City of Stirling"]
[null,null,null,null,null,null,null,null,null,null,"City of Subiaco"]
[null,null,null,null,null,null,null,null,null,null,"City of Swan"]
[null,null,null,null,null,null,null,null,null,null,"City of Vincent"]
[null,null,null,null,null,null,null,null,null,null,"City of Wanneroo"]
[null,null,null,null,null,null,null,null,null,null,"Combat Sports Commission"]
[null,null,null,null,null,null,null,null,null,null,"Commission for Occupational Safety and Health"]
[null,null,null,null,null,null,null,null,null,null,"Commissioner for Children and Young People"]
[null,null,null,null,null,null,null,null,null,null,"Conservation and Parks Commission"]
[null,null,null,null,null,null,null,null,null,null,"Construction Industry Long Service Leave Payments Board"]
[null,null,null,null,null,null,null,null,null,null,"Corruption and Crime Commission"]
[null,null,null,null,null,null,null,null,null,null,"Country Housing Authority"]
[null,null,null,null,null,null,null,null,null,null,"Curtin University of Technology"]
[null,null,null,null,null,null,null,null,null,null,"Department of Biodiversity, Conservation and Attractions"]
[null,null,null,null,null,null,null,null,null,null,"Department of Communities"]
[null,null,null,null,null,null,null,null,null,null,"Department of Education"]
[null,null,null,null,null,null,null,null,null,null,"Department of Finance"]
[null,null,null,null,null,null,null,null,null,null,"Department of Fire and Emergency Services"]
[null,null,null,null,null,null,null,null,null,null,"Department of Health"]
[null,null,null,null,null,null,null,null,null,null,"Department of Jobs, Tourism, Science and Innovation"]
[null,null,null,null,null,null,null,null,null,null,"Department of Justice"]
[null,null,null,null,null,null,null,null,null,null,"Department of Local Government, Sport and Cultural Industries"]
[null,null,null,null,null,null,null,null,null,null,"Department of Mines, Industry Regulation and Safety"]
[null,null,null,null,null,null,null,null,null,null,"Department of Planning, Lands and Heritage"]
[null,null,null,null,null,null,null,null,null,null,"Department of Primary Industries and Regional Development"]
[null,null,null,null,null,null,null,null,null,null,"Department of the Premier and Cabinet"]
[null,null,null,null,null,null,null,null,null,null,"Department of the Registrar Western Australian Industrial Relations Commission"]
[null,null,null,null,null,null,null,null,null,null,"Department of Training and Workforce Development"]
[null,null,null,null,null,null,null,null,null,null,"Department of Transport"]
[null,null,null,null,null,null,null,null,null,null,"Department of Treasury"]
[null,null,null,null,null,null,null,null,null,null,"Department of Water and Environmental Regulation"]
[null,null,null,null,null,null,null,null,null,null,"Director of Equal Opportunity in Public Employment"]
[null,null,null,null,null,null,null,null,null,null,"Economic Regulation Authority"]
[null,null,null,null,null,null,null,null,null,null,"Edith Cowan University"]
[null,null,null,null,null,null,null,null,null,null,"Electorate Offices"]
[null,null,null,null,null,null,null,null,null,null,"Energy Policy WA"]
[null,null,null,null,null,null,null,null,null,null,"Environmental Protection Authority"]
[null,null,null,null,null,null,null,null,null,null,"Equal Opportunity Commission"]
[null,null,null,null,null,null,null,null,null,null,"Forest Products Commission"]
[null,null,null,null,null,null,null,null,null,null,"Fremantle Port Authority"]
[null,null,null,null,null,null,null,null,null,null,"Gascoyne Development Commission"]
[null,null,null,null,null,null,null,null,null,null,"Gold Corporation"]
[null,null,null,null,null,null,null,null,null,null,"Goldfields-Esperance Development Commission"]
[null,null,null,null,null,null,null,null,null,null,"Government Employees Superannuation Board"]
[null,null,null,null,null,null,null,null,null,null,"Governor's Establishment"]
[null,null,null,null,null,null,null,null,null,null,"Great Southern Development Commission"]
[null,null,null,null,null,null,null,null,null,null,"Health and Disability Services Complaints Office"]
[null,null,null,null,null,null,null,null,null,null,"Infrastructure WA"]
[null,null,null,null,null,null,null,null,null,null,"Insurance Commission of Western Australia"]
[null,null,null,null,null,null,null,null,null,null,"Keep Australia Beautiful Council (W.A.)"]
[null,null,null,null,null,null,null,null,null,null,"Kimberley Development Commission"]
[null,null,null,null,null,null,null,null,null,null,"Kimberley Ports Authority"]
[null,null,null,null,null,null,null,null,null,null,"Law Reform Commission of Western Australia"]
[null,null,null,null,null,null,null,null,null,null,"Legal Aid Commission of Western Australia"]
[null,null,null,null,null,null,null,null,null,null,"Legal Practice Board of WA"]
[null,null,null,null,null,null,null,null,null,null,"Liquor Commission"]
[null,null,null,null,null,null,null,null,null,null,"Lotteries Commission"]
[null,null,null,null,null,null,null,null,null,null,"Main Roads Western Australia"]
[null,null,null,null,null,null,null,null,null,null,"Mental Health Commission"]
[null,null,null,null,null,null,null,null,null,null,"Metropolitan Cemeteries Board"]
[null,null,null,null,null,null,null,null,null,null,"Metropolitan Redevelopment Authority"]
[null,null,null,null,null,null,null,null,null,null,"Mid West Development Commission"]
[null,null,null,null,null,null,null,null,null,null,"Mid West Ports Authority"]
[null,null,null,null,null,null,null,null,null,null,"Minerals Research Institute of Western Australia"]
[null,null,null,null,null,null,null,null,null,null,"Murdoch University"]
[null,null,null,null,null,null,null,null,null,null,"North Metropolitan TAFE"]
[null,null,null,null,null,null,null,null,null,null,"North Regional TAFE"]
[null,null,null,null,null,null,null,null,null,null,"Office of the Auditor General"]
[null,null,null,null,null,null,null,null,null,null,"Office of the Director of Public Prosecutions"]
[null,null,null,null,null,null,null,null,null,null,"Office of the Information Commissioner"]
[null,null,null,null,null,null,null,null,null,null,"Office of the Inspector of Custodial Services"]
[null,null,null,null,null,null,null,null,null,null,"Office of the Parliamentary Inspector of the Corruption and Crime Commission"]
[null,null,null,null,null,null,null,null,null,null,"Parliamentary Commissioner for Administrative Investigations"]
[null,null,null,null,null,null,null,null,null,null,"Parliamentary Superannuation Board"]
[null,null,null,null,null,null,null,null,null,null,"Peel Development Commission"]
[null,null,null,null,null,null,null,null,null,null,"Perth Theatre Trust"]
[null,null,null,null,null,null,null,null,null,null,"Pilbara Development Commission"]
[null,null,null,null,null,null,null,null,null,null,"Pilbara Ports Authority"]
[null,null,null,null,null,null,null,null,null,null,"Plumbers Licensing Board"]
[null,null,null,null,null,null,null,null,null,null,"Prisoners Review Board"]
[null,null,null,null,null,null,null,null,null,null,"Professional Standards Council"]
[null,null,null,null,null,null,null,null,null,null,"Public Sector Commission"]
[null,null,null,null,null,null,null,null,null,null,"Public Transport Authority of Western Australia"]
[null,null,null,null,null,null,null,null,null,null,"Public Trust Office"]
[null,null,null,null,null,null,null,null,null,null,"Racing and Wagering Western Australia"]
[null,null,null,null,null,null,null,null,null,null,"Regional Power Corporation"]
[null,null,null,null,null,null,null,null,null,null,"Rottnest Island Authority"]
[null,null,null,null,null,null,null,null,null,null,"Rural Business Development Corporation"]
[null,null,null,null,null,null,null,null,null,null,"Salaries and Allowances Tribunal"]
[null,null,null,null,null,null,null,null,null,null,"School Curriculum and Standards Authority "]
[null,null,null,null,null,null,null,null,null,null,"Shire of Ashburton"]
[null,null,null,null,null,null,null,null,null,null,"Shire of Augusta-Margaret River"]
[null,null,null,null,null,null,null,null,null,null,"Shire of Beverley"]
[null,null,null,null,null,null,null,null,null,null,"Shire of Boddington"]
[null,null,null,null,null,null,null,null,null,null,"Shire of Boyup Brook"]
[null,null,null,null,null,null,null,null,null,null,"Shire of Bridgetown-Greenbushes"]
[null,null,null,null,null,null,null,null,null,null,"Shire of Brookton"]
[null,null,null,null,null,null,null,null,null,null,"Shire of Broome"]
[null,null,null,null,null,null,null,null,null,null,"Shire of Broomehill-Tambellup"]
[null,null,null,null,null,null,null,null,null,null,"Shire of Bruce Rock"]
[null,null,null,null,null,null,null,null,null,null,"Shire of Capel"]
[null,null,null,null,null,null,null,null,null,null,"Shire of Carnamah"]
[null,null,null,null,null,null,null,null,null,null,"Shire of Carnarvon"]
[null,null,null,null,null,null,null,null,null,null,"Shire of Chapman Valley"]
[null,null,null,null,null,null,null,null,null,null,"Shire of Chittering"]
[null,null,null,null,null,null,null,null,null,null,"Shire of Christmas Island"]
[null,null,null,null,null,null,null,null,null,null,"Shire of Cocos (Keeling) Islands"]
[null,null,null,null,null,null,null,null,null,null,"Shire of Collie"]
[null,null,null,null,null,null,null,null,null,null,"Shire of Coolgardie"]
[null,null,null,null,null,null,null,null,null,null,"Shire of Coorow"]
[null,null,null,null,null,null,null,null,null,null,"Shire of Corrigin"]
[null,null,null,null,null,null,null,null,null,null,"Shire of Cranbrook"]
[null,null,null,null,null,null,null,null,null,null,"Shire of Cuballing"]
[null,null,null,null,null,null,null,null,null,null,"Shire of Cue"]
[null,null,null,null,null,null,null,null,null,null,"Shire of Cunderdin"]
[null,null,null,null,null,null,null,null,null,null,"Shire of Dalwallinu"]
[null,null,null,null,null,null,null,null,null,null,"Shire of Dandaragan"]
[null,null,null,null,null,null,null,null,null,null,"Shire of Dardanup"]
[null,null,null,null,null,null,null,null,null,null,"Shire of Denmark"]
[null,null,null,null,null,null,null,null,null,null,"Shire of Derby/West Kimberley"]
[null,null,null,null,null,null,null,null,null,null,"Shire of Donnybrook-Balingup"]
[null,null,null,null,null,null,null,null,null,null,"Shire of Dowerin"]
[null,null,null,null,null,null,null,null,null,null,"Shire of Dumbleyung"]
[null,null,null,null,null,null,null,null,null,null,"Shire of Dundas"]
[null,null,null,null,null,null,null,null,null,null,"Shire of East Pilbara"]
[null,null,null,null,null,null,null,null,null,null,"Shire of Esperance"]
[null,null,null,null,null,null,null,null,null,null,"Shire of Exmouth"]
[null,null,null,null,null,null,null,null,null,null,"Shire of Gingin"]
[null,null,null,null,null,null,null,null,null,null,"Shire of Gnowangerup"]
[null,null,null,null,null,null,null,null,null,null,"Shire of Goomalling"]
[null,null,null,null,null,null,null,null,null,null,"Shire of Halls Creek"]
[null,null,null,null,null,null,null,null,null,null,"Shire of Harvey"]
[null,null,null,null,null,null,null,null,null,null,"Shire of Irwin"]
[null,null,null,null,null,null,null,null,null,null,"Shire of Jerramungup"]
[null,null,null,null,null,null,null,null,null,null,"Shire of Kalamunda"]
[null,null,null,null,null,null,null,null,null,null,"Shire of Katanning"]
[null,null,null,null,null,null,null,null,null,null,"Shire of Kellerberrin"]
[null,null,null,null,null,null,null,null,null,null,"Shire of Kent"]
[null,null,null,null,null,null,null,null,null,null,"Shire of Kojonup"]
[null,null,null,null,null,null,null,null,null,null,"Shire of Kondinin"]
[null,null,null,null,null,null,null,null,null,null,"Shire of Koorda"]
[null,null,null,null,null,null,null,null,null,null,"Shire of Kulin"]
[null,null,null,null,null,null,null,null,null,null,"Shire of Lake Grace"]
[null,null,null,null,null,null,null,null,null,null,"Shire of Laverton"]
[null,null,null,null,null,null,null,null,null,null,"Shire of Leonora"]
[null,null,null,null,null,null,null,null,null,null,"Shire of Manjimup"]
[null,null,null,null,null,null,null,null,null,null,"Shire of Meekatharra"]
[null,null,null,null,null,null,null,null,null,null,"Shire of Menzies"]
[null,null,null,null,null,null,null,null,null,null,"Shire of Merredin"]
[null,null,null,null,null,null,null,null,null,null,"Shire of Mingenew"]
[null,null,null,null,null,null,null,null,null,null,"Shire of Moora"]
[null,null,null,null,null,null,null,null,null,null,"Shire of Morawa"]
[null,null,null,null,null,null,null,null,null,null,"Shire of Mount Magnet"]
[null,null,null,null,null,null,null,null,null,null,"Shire of Mt Marshall"]
[null,null,null,null,null,null,null,null,null,null,"Shire of Mukinbudin"]
[null,null,null,null,null,null,null,null,null,null,"Shire of Mundaring"]
[null,null,null,null,null,null,null,null,null,null,"Shire of Murchison"]
[null,null,null,null,null,null,null,null,null,null,"Shire of Murray"]
[null,null,null,null,null,null,null,null,null,null,"Shire of Nannup"]
[null,null,null,null,null,null,null,null,null,null,"Shire of Narembeen"]
[null,null,null,null,null,null,null,null,null,null,"Shire of Narrogin"]
[null,null,null,null,null,null,null,null,null,null,"Shire of Ngaanyatjarraku"]
[null,null,null,null,null,null,null,null,null,null,"Shire of Northam"]
[null,null,null,null,null,null,null,null,null,null,"Shire of Northampton"]
[null,null,null,null,null,null,null,null,null,null,"Shire of Nungarin"]
[null,null,null,null,null,null,null,null,null,null,"Shire of Peppermint Grove"]
[null,null,null,null,null,null,null,null,null,null,"Shire of Perenjori"]
[null,null,null,null,null,null,null,null,null,null,"Shire of Pingelly"]
[null,null,null,null,null,null,null,null,null,null,"Shire of Plantagenet"]
[null,null,null,null,null,null,null,null,null,null,"Shire of Quairading"]
[null,null,null,null,null,null,null,null,null,null,"Shire of Ravensthorpe"]
[null,null,null,null,null,null,null,null,null,null,"Shire of Sandstone"]
[null,null,null,null,null,null,null,null,null,null,"Shire of Serpentine Jarrahdale"]
[null,null,null,null,null,null,null,null,null,null,"Shire of Shark Bay"]
[null,null,null,null,null,null,null,null,null,null,"Shire of Tammin"]
[null,null,null,null,null,null,null,null,null,null,"Shire of Three Springs"]
[null,null,null,null,null,null,null,null,null,null,"Shire of Toodyay"]
[null,null,null,null,null,null,null,null,null,null,"Shire of Trayning"]
[null,null,null,null,null,null,null,null,null,null,"Shire of Upper Gascoyne"]
[null,null,null,null,null,null,null,null,null,null,"Shire of Victoria Plains"]
[null,null,null,null,null,null,null,null,null,null,"Shire of Wagin"]
[null,null,null,null,null,null,null,null,null,null,"Shire of Wandering"]
[null,null,null,null,null,null,null,null,null,null,"Shire of Waroona"]
[null,null,null,null,null,null,null,null,null,null,"Shire of West Arthur"]
[null,null,null,null,null,null,null,null,null,null,"Shire of Westonia"]
[null,null,null,null,null,null,null,null,null,null,"Shire of Wickepin"]
[null,null,null,null,null,null,null,null,null,null,"Shire of Williams"]
[null,null,null,null,null,null,null,null,null,null,"Shire of Wiluna"]
[null,null,null,null,null,null,null,null,null,null,"Shire of Wongan-Ballidu"]
[null,null,null,null,null,null,null,null,null,null,"Shire of Woodanilling"]
[null,null,null,null,null,null,null,null,null,null,"Shire of Wyalkatchem"]
[null,null,null,null,null,null,null,null,null,null,"Shire of Wyndham-East Kimberley"]
[null,null,null,null,null,null,null,null,null,null,"Shire of Yalgoo"]
[null,null,null,null,null,null,null,null,null,null,"Shire of Yilgarn"]
[null,null,null,null,null,null,null,null,null,null,"Shire of York"]
[null,null,null,null,null,null,null,null,null,null,"Small Business Development Corporation"]
[null,null,null,null,null,null,null,null,null,null,"Solicitor-General"]
[null,null,null,null,null,null,null,null,null,null,"South Metropolitan TAFE"]
[null,null,null,null,null,null,null,null,null,null,"South Regional TAFE"]
[null,null,null,null,null,null,null,null,null,null,"South West Development Commission"]
[null,null,null,null,null,null,null,null,null,null,"Southern Ports Authority"]
[null,null,null,null,null,null,null,null,null,null,"State Supply Commission"]
[null,null,null,null,null,null,null,null,null,null,"Synergy"]
[null,null,null,null,null,null,null,null,null,null,"The Board of the Art Gallery of Western Australia"]
[null,null,null,null,null,null,null,null,null,null,"The Burswood Park Board"]
[null,null,null,null,null,null,null,null,null,null,"The Library Board of Western Australia"]
[null,null,null,null,null,null,null,null,null,null,"The National Trust of Australia (W.A.)"]
[null,null,null,null,null,null,null,null,null,null,"The Queen Elizabeth II Medical Centre Trust"]
[null,null,null,null,null,null,null,null,null,null,"The University of Notre Dame Australia"]
[null,null,null,null,null,null,null,null,null,null,"The University of Western Australia"]
[null,null,null,null,null,null,null,null,null,null,"The Western Australian Museum"]
[null,null,null,null,null,null,null,null,null,null,"Town of Bassendean"]
[null,null,null,null,null,null,null,null,null,null,"Town of Cambridge"]
[null,null,null,null,null,null,null,null,null,null,"Town of Claremont"]
[null,null,null,null,null,null,null,null,null,null,"Town of Cottesloe"]
[null,null,null,null,null,null,null,null,null,null,"Town of East Fremantle"]
[null,null,null,null,null,null,null,null,null,null,"Town of Mosman Park"]
[null,null,null,null,null,null,null,null,null,null,"Town of Port Hedland"]
[null,null,null,null,null,null,null,null,null,null,"Town of Victoria Park"]
[null,null,null,null,null,null,null,null,null,null,"Trustees of Public Education Endowment"]
[null,null,null,null,null,null,null,null,null,null,"Veterinary Surgeons' Board"]
[null,null,null,null,null,null,null,null,null,null,"Water Corporation"]
[null,null,null,null,null,null,null,null,null,null,"Western Australia Police"]
[null,null,null,null,null,null,null,null,null,null,"Western Australian Coastal Shipping Commission"]
[null,null,null,null,null,null,null,null,null,null,"Western Australian Electoral Commission"]
[null,null,null,null,null,null,null,null,null,null,"Western Australian Energy Disputes Arbitrator"]
[null,null,null,null,null,null,null,null,null,null,"Western Australian Greyhound Racing Association"]
[null,null,null,null,null,null,null,null,null,null,"Western Australian Health Promotion Foundation"]
[null,null,null,null,null,null,null,null,null,null,"Western Australian Institute of Sport"]
[null,null,null,null,null,null,null,null,null,null,"Western Australian Land Authority"]
[null,null,null,null,null,null,null,null,null,null,"Western Australian Land Information Authority"]
[null,null,null,null,null,null,null,null,null,null,"Western Australian Local Government Association"]
[null,null,null,null,null,null,null,null,null,null,"Western Australian Meat Industry Authority"]
[null,null,null,null,null,null,null,null,null,null,"Western Australian Planning Commission"]
[null,null,null,null,null,null,null,null,null,null,"Western Australian Sports Centre Trust"]
[null,null,null,null,null,null,null,null,null,null,"Western Australian Tourism Commission"]
[null,null,null,null,null,null,null,null,null,null,"Western Australian Treasury Corporation"]
[null,null,null,null,null,null,null,null,null,null,"Western Power"]
[null,null,null,null,null,null,null,null,null,null,"Wheatbelt Development Commission"]
[null,null,null,null,null,null,null,null,null,null,"WorkCover Western Australia Authority"]
[null,null,null,null,null,null,null,null,null,null,"Zoological Parks Authority"]